fUST/lending_fUST_20251024
["ID","MTS","AMOUNT","RATE_DAILY","PERIOD"]
[392287917,1761311246776,10000.01,0.00018396,2]
[392287918,1761311246800,10000.01,0.00018396,2]
[392287919,1761311246822,10000.01,0.00018396,2]
[392287920,1761311246843,10000.01,0.00018396,2]
[392287921,1761311246866,10000.01,0.00018396,2]
[392287922,1761311246889,10000.01,0.00018396,2]
[392287923,1761311246914,10000.01,0.00018396,2]
[392287924,1761311246939,10000.01,0.00018396,2]
[392287925,1761311260864,-1200.0,0.00018395,2]
[392287926,1761311284534,213.58,0.00015095,2]
[392287927,1761311284922,213.58,0.00015095,2]
[392287928,1761311285590,300.0,0.00018395,2]
[392287929,1761311307335,1879.97944898,0.00015,2]
[392287930,1761311312445,272.01725345,0.00018395,2]
[392287931,1761311312481,539.54364999,0.00018395,2]
[392287932,1761311313850,479.69494342,0.00018395,2]
[392287933,1761311313881,500.0,0.00018395,2]
[392287934,1761311313913,538.77430121,0.00018395,2]
[392287935,1761311313952,408.69484927,0.00018395,2]
[392287936,1761311313989,200.0,0.00018395,2]
[392287937,1761311323485,500.0,0.00018395,2]
[392287938,1761311332966,500.0,0.00018395,2]
[392287939,1761311345070,500.0,0.00018395,2]
[392287940,1761311345758,300.0,0.00018395,2]
[392287942,1761311362000,254.14555368,0.00018395,2]
[392287943,1761311362024,245.85444632,0.00018395,2]
[392287944,1761311362070,500.0,0.00018395,2]
[392287945,1761311370839,1999.0,0.00030136,120]
[392287946,1761311372672,500.0,0.00018395,2]
[392287959,1761311379717,500.0,0.00018395,2]
[392287960,1761311382850,500.0,0.00018395,2]
[392287961,1761311392015,500.0,0.00018395,2]
[392287962,1761311393143,1000.0,0.00017547,2]
[392287963,1761311397538,500.0,0.00018395,2]
[392287964,1761311403470,1200.0,0.00018395,2]
[392287965,1761311403735,300.0,0.00018395,2]
[392287966,1761311403789,300.0,0.00018395,2]
[392287967,1761311404085,500.0,0.00018395,2]
[392287968,1761311404143,500.0,0.00018395,2]
[392287969,1761311409301,744.74,0.00018495,11]
[392287970,1761311409524,930.925,0.00018495,14]
[392287971,1761311409764,1117.11,0.00018495,17]
[392287972,1761311410043,1303.295,0.00018495,20]
[392287973,1761311410302,1489.48,0.00018495,23]
[392287974,1761311410549,1675.665,0.00018495,26]
[392287975,1761311410784,1861.85,0.00018495,29]
[392287976,1761311411051,406.54830884,0.00018495,32]
[392287977,1761311411082,1641.48669116,0.00018495,32]
[392287978,1761311411270,2234.22,0.00018495,35]
[392287979,1761311411501,2420.405,0.00018495,38]
[392287980,1761311412028,930.94787972,0.00018594,41]
[392287981,1761311413285,454.66952913,0.00018395,2]
[392287982,1761311413333,476.0814152,0.00018395,2]
[392287983,1761311413785,532.12913502,0.00018395,2]
[392287984,1761311415372,500.0,0.00018395,2]
[392287985,1761311415426,430.75094433,0.00018395,2]
[392287986,1761311416176,179.16,0.00018386,2]
[392287987,1761311419922,381.36453,0.00017547,2]
[392287988,1761311419949,1025.7129345,0.00017547,2]
[392287989,1761311422100,500.0,0.00018395,2]
[392287990,1761311428375,643.49889697,0.00018395,2]
[392288052,1761311432483,-279441.36637488,0.00018396,2]
[392288054,1761311432493,-1000.0,0.00018495,2]
[392288056,1761311432503,-1000.0,0.00018495,2]
[392288058,1761311432512,-1000.0,0.00018495,2]
[392288060,1761311432521,-1000.0,0.00018495,2]
[392288062,1761311432530,-1000.0,0.00018495,2]
[392288063,1761311432539,-1000.0,0.00018495,2]
[392288065,1761311432549,-1000.0,0.00018495,2]
[392288067,1761311432558,-1000.0,0.00018495,2]
[392288069,1761311432568,-1000.0,0.00018495,2]
[392288071,1761311432578,-1000.0,0.00018495,2]
[392288072,1761311432587,-699.33056489,0.00018495,2]
[392288073,1761311432597,-500.0,0.00018495,2]
[392288074,1761311432606,-500.0,0.00018495,2]
[392288075,1761311432615,-186.185,0.00018495,2]
[392288076,1761311432625,-372.37,0.00018495,5]
[392288077,1761311432635,-558.555,0.00018495,8]
[392288078,1761311432644,-50000.0,0.00018495,2]
[392288079,1761311432654,-151.0,0.00018496,2]
[392288080,1761311432663,-221.88543242,0.00018496,2]
[392288081,1761311432673,-549.73698887,0.00018496,2]
[392288082,1761311432683,-200.0,0.00018496,2]
[392288083,1761311432693,-5076.9316605,0.00018497,2]
[392288084,1761311432703,-300.0,0.000185,2]
[392288085,1761311432712,-300.0,0.000185,2]
[392288086,1761311432722,-500.0,0.000185,2]
[392288087,1761311432732,-183.2,0.00018585,3]
[392288088,1761311432742,-548.16,0.00018585,3]
[392288089,1761311432751,-274.08,0.00018585,3]
[392288090,1761311432761,-822.25,0.00018585,3]
[392288091,1761311432770,-1299.03486399,0.00018597,2]
[392288092,1761311432779,-571.83052824,0.00018696,2]
[392288093,1761311432790,-242.26365411,0.00018696,2]
[392288094,1761311432799,-1029.29495082,0.00018696,2]
[392288095,1761311432811,-1829.85769035,0.00018696,2]
[392288096,1761311432820,-2859.15264118,0.00018696,2]
[392288097,1761311432830,-245.72681459,0.00018696,2]
[392288098,1761311432838,-442.30826626,0.00018696,2]
[392288099,1761311432847,-786.32580669,0.00018696,2]
[392288100,1761311432857,-340.28,0.00018785,3]
[392288101,1761311432867,-466.75504294,0.00018795,2]
[392288102,1761311432877,-840.1590773,0.00018795,2]
[392288103,1761311432887,-1493.61613742,0.00018795,2]
[392288104,1761311432896,-1299.03486399,0.00018798,2]
[392288105,1761311432906,-151.0,0.000189,2]
[392288106,1761311432915,-100000.0,0.0001899,2]
[392288107,1761311432925,-1299.03486399,0.00018999,2]
[392288108,1761311432934,-311.0,0.00018999,2]
[392288109,1761311432944,-151.0,0.00019044,2]
[392288110,1761311432953,-230.09519341,0.00019044,2]
[392288111,1761311432964,-500.0,0.00019047,2]
[392288112,1761311432973,-300.0,0.00019069,2]
[392288113,1761311432982,-300.0,0.00019069,2]
[392288114,1761311432991,-300.0,0.00019069,2]
[392288115,1761311433001,-300.0,0.00019069,2]
[392288116,1761311433010,-300.0,0.00019069,2]
[392288117,1761311433019,-300.0,0.00019069,2]
[392288118,1761311433030,-300.0,0.00019069,2]
[392288119,1761311433040,-300.0,0.00019069,2]
[392288120,1761311433049,-300.0,0.00019069,2]
[392288121,1761311433058,-300.0,0.00019069,2]
[392288122,1761311433068,-300.0,0.00019069,2]
[392288123,1761311433078,-300.0,0.00019069,2]
[392288124,1761311433087,-300.0,0.00019069,2]
[392288125,1761311433096,-300.0,0.00019069,2]
[392288126,1761311433106,-300.0,0.00019069,2]
[392288127,1761311433122,-600.0,0.00019069,2]
[392288128,1761311433131,-188.38,0.00019069,2]
[392288129,1761311433141,-500.0,0.00019069,2]
[392288130,1761311433151,-500.0,0.00019069,2]
[392288131,1761311433335,-500.0,0.00019069,2]
[392288132,1761311433346,-996.71,0.00019073,2]
[392288133,1761311433357,-500.0,0.00019093,2]
[392288134,1761311433366,-150.0,0.00019093,2]
[392288135,1761311433376,-5304.42842949,0.00019097,2]
[392288136,1761311433386,-500.0,0.00019124,2]
[392288137,1761311433395,-500.0,0.00019124,2]
[392288138,1761311433405,-529.17668655,0.00019124,2]
[392288139,1761311433414,-500.0,0.00019173,2]
[392288140,1761311433424,-155.42,0.00019177,2]
[392288141,1761311433434,-915.64401203,0.00019178,2]
[392288142,1761311433443,-915.64401203,0.00019178,2]
[392288143,1761311433452,-915.64401203,0.00019178,2]
[392288144,1761311433462,-915.64401203,0.00019178,2]
[392288145,1761311433472,-915.64401203,0.00019178,2]
[392288146,1761311433481,-915.64401203,0.00019178,2]
[392288147,1761311433491,-915.64401203,0.00019178,2]
[392288148,1761311433500,-915.64401203,0.00019178,2]
[392288149,1761311433509,-915.64401203,0.00019178,2]
[392288150,1761311433519,-915.64401203,0.00019178,2]
[392288151,1761311433528,-915.64401203,0.00019178,2]
[392288152,1761311433538,-915.64401203,0.00019178,2]
[392288153,1761311433546,-915.64401203,0.00019178,2]
[392288154,1761311433556,-915.64401203,0.00019178,2]
[392288155,1761311433565,-915.64401203,0.00019178,2]
[392288156,1761311433574,-915.64401203,0.00019178,2]
[392288157,1761311433584,-915.64401203,0.00019178,2]
[392288158,1761311433595,-915.64401203,0.00019178,2]
[392288159,1761311433605,-915.64401203,0.00019178,2]
[392288160,1761311433614,-915.64401203,0.00019178,2]
[392288161,1761311433624,-915.64401203,0.00019178,2]
[392288162,1761311433634,-915.64401203,0.00019178,2]
[392288163,1761311433643,-915.64401203,0.00019178,2]
[392288164,1761311433653,-915.64401203,0.00019178,2]
[392288165,1761311433662,-915.64401203,0.00019178,2]
[392288166,1761311433672,-915.64401203,0.00019178,2]
[392288167,1761311433682,-915.64401203,0.00019178,2]
[392288168,1761311433691,-915.64401203,0.00019178,2]
[392288169,1761311433701,-915.64401203,0.00019178,2]
[392288170,1761311433711,-915.64401203,0.00019178,2]
[392288171,1761311433721,-915.64401203,0.00019178,2]
[392288172,1761311433731,-915.64401203,0.00019178,2]
[392288173,1761311433740,-915.64401203,0.00019178,2]
[392288174,1761311433749,-915.64401203,0.00019178,2]
[392288175,1761311433759,-915.64401203,0.00019178,2]
[392288176,1761311433769,-915.64401203,0.00019178,2]
[392288177,1761311433779,-915.64401203,0.00019178,2]
[392288178,1761311433789,-915.64401203,0.00019178,2]
[392288179,1761311433801,-915.64401203,0.00019178,2]
[392288180,1761311433811,-915.64401203,0.00019178,2]
[392288181,1761311433820,-915.64401203,0.00019178,2]
[392288182,1761311433829,-915.64401203,0.00019178,2]
[392288183,1761311433837,-915.64401203,0.00019178,2]
[392288184,1761311433847,-915.64401203,0.00019178,2]
[392288185,1761311433856,-915.64401203,0.00019178,2]
[392288186,1761311433867,-915.64401203,0.00019178,2]
[392288187,1761311433878,-915.64401203,0.00019178,2]
[392288188,1761311433888,-915.64401203,0.00019178,2]
[392288189,1761311433898,-915.64401203,0.00019178,2]
[392288190,1761311433908,-915.64401203,0.00019178,2]
[392288191,1761311433917,-915.64401203,0.00019178,2]
[392288192,1761311433927,-915.64401203,0.00019178,2]
[392288193,1761311433936,-915.64401203,0.00019178,2]
[392288194,1761311433947,-915.64401203,0.00019178,2]
[392288195,1761311433956,-915.64401203,0.00019178,2]
[392288196,1761311433967,-915.64401203,0.00019178,2]
[392288197,1761311433977,-915.64401203,0.00019178,2]
[392288198,1761311433988,-915.64401203,0.00019178,2]
[392288199,1761311433999,-915.64401203,0.00019178,2]
[392288200,1761311434008,-915.64401203,0.00019178,2]
[392288201,1761311434020,-912.37385485,0.00019178,2]
[392288202,1761311434031,-912.37385485,0.00019178,2]
[392288203,1761311434041,-912.37385485,0.00019178,2]
[392288204,1761311434051,-912.37385485,0.00019178,2]
[392288205,1761311434060,-912.37385485,0.00019178,2]
[392288206,1761311434070,-912.37385485,0.00019178,2]
[392288207,1761311434079,-912.37385485,0.00019178,2]
[392288208,1761311434088,-912.37385485,0.00019178,2]
[392288209,1761311434097,-912.37385485,0.00019178,2]
[392288210,1761311434107,-912.37385485,0.00019178,2]
[392288211,1761311434116,-912.37385485,0.00019178,2]
[392288212,1761311434127,-912.37385485,0.00019178,2]
[392288213,1761311434136,-912.37385485,0.00019178,2]
[392288214,1761311434146,-912.37385485,0.00019178,2]
[392288215,1761311434155,-912.37385485,0.00019178,2]
[392288216,1761311434165,-912.37385485,0.00019178,2]
[392288217,1761311434175,-912.37385485,0.00019178,2]
[392288218,1761311434184,-912.37385485,0.00019178,2]
[392288219,1761311434194,-912.37385485,0.00019178,2]
[392288220,1761311434203,-912.37385485,0.00019178,2]
[392288221,1761311434213,-912.37385485,0.00019178,2]
[392288222,1761311434222,-912.37385485,0.00019178,2]
[392288223,1761311434232,-912.37385485,0.00019178,2]
[392288224,1761311434241,-912.37385485,0.00019178,2]
[392288225,1761311434250,-912.37385485,0.00019178,2]
[392288226,1761311434259,-912.37385485,0.00019178,2]
[392288227,1761311434271,-912.37385485,0.00019178,2]
[392288228,1761311434281,-912.37385485,0.00019178,2]
[392288229,1761311434291,-5000.0,0.00019178,2]
[392288230,1761311434300,-3060.00649668,0.00019178,2]
[392288231,1761311434311,-500.0,0.00019179,2]
[392288232,1761311434320,-500.0,0.00019179,2]
[392288233,1761311434329,-1299.03486399,0.000192,2]
[392288234,1761311434339,-500.0,0.00019233,2]
[392288235,1761311434349,-500.0,0.00019233,2]
[392288236,1761311434359,-500.0,0.00019273,2]
[392288237,1761311434368,-500.0,0.00019273,2]
[392288238,1761311434378,-500.0,0.00019273,2]
[392288239,1761311434387,-150.0,0.00019273,2]
[392288240,1761311434396,-501.86689631,0.00019273,2]
[392288241,1761311434405,-500.0,0.00019273,2]
[392288242,1761311434415,-500.0,0.00019273,2]
[392288243,1761311434426,-500.0,0.00019273,2]
[392288244,1761311434436,-500.0,0.00019273,2]
[392288245,1761311434446,-500.0,0.00019288,2]
[392288246,1761311434455,-500.0,0.00019288,2]
[392288247,1761311434465,-300000.0,0.000193,2]
[392288248,1761311434474,-441.548319,0.000193,7]
[392288249,1761311434483,-441.548319,0.000193,7]
[392288250,1761311434492,-441.548319,0.000193,7]
[392288251,1761311434502,-441.548319,0.000193,7]
[392288252,1761311434512,-151.0,0.000193,7]
[392288253,1761311434521,-152.898567,0.000193,7]
[392288254,1761311434532,-152.171978,0.000193,7]
[392288255,1761311434541,-151.0,0.000193,7]
[392288256,1761311434552,-982.48872357,0.000193,2]
[392288257,1761311434562,-151.0,0.000193,7]
[392288258,1761311434572,-151.0,0.000193,7]
[392288259,1761311434582,-172.21837372,0.000193,7]
[392288260,1761311434592,-151.0,0.000193,7]
[392288261,1761311434602,-151.0,0.000193,7]
[392288262,1761311434611,-151.0,0.000193,7]
[392288263,1761311434620,-731.126023,0.000193,7]
[392288264,1761311434630,-731.126023,0.000193,7]
[392288265,1761311434639,-731.126023,0.000193,7]
[392288266,1761311434648,-731.126023,0.000193,7]
[392288267,1761311434657,-151.0,0.000193,7]
[392288268,1761311434666,-151.0,0.000193,7]
[392288269,1761311434675,-151.0,0.000193,7]
[392288270,1761311434684,-492.128239,0.000193,7]
[392288271,1761311434693,-492.128239,0.000193,7]
[392288272,1761311434703,-151.0,0.000193,7]
[392288273,1761311434712,-151.0,0.000193,7]
[392288274,1761311434721,-492.128239,0.000193,7]
[392288275,1761311434730,-151.0,0.000193,7]
[392288276,1761311434740,-492.128239,0.000193,7]
[392288277,1761311434750,-821.103936,0.000193,7]
[392288278,1761311434759,-151.0,0.000193,7]
[392288279,1761311434768,-821.103936,0.000193,7]
[392288280,1761311434778,-821.103936,0.000193,7]
[392288281,1761311434787,-821.103936,0.000193,7]
[392288282,1761311434796,-151.0,0.000193,7]
[392288283,1761311434807,-1023.34667,0.000193,7]
[392288284,1761311434816,-151.0,0.000193,7]
[392288285,1761311434826,-1023.34667,0.000193,7]
[392288286,1761311434836,-1023.34667,0.000193,7]
[392288287,1761311434845,-1023.34667,0.000193,7]
[392288288,1761311434855,-151.0,0.000193,7]
[392288289,1761311434865,-151.0,0.000193,7]
[392288290,1761311434875,-151.0,0.000193,7]
[392288291,1761311434885,-151.0,0.000193,7]
[392288292,1761311434896,-151.0,0.000193,7]
[392288293,1761311434905,-300.212769,0.000193,7]
[392288294,1761311434914,-151.0,0.000193,7]
[392288295,1761311434923,-500.0,0.00019343,2]
[392288296,1761311434933,-500.0,0.00019343,2]
[392288297,1761311434943,-188.38166979,0.00019343,2]
[392288298,1761311434952,-500.0,0.00019367,2]
[392288299,1761311434962,-500.0,0.00019398,2]
[392288300,1761311434971,-500.0,0.00019398,2]
[392288301,1761311434981,-301.00446533,0.0001941,2]
[392288302,1761311434990,-5076.93166049,0.00019449,2]
[392288303,1761311434999,-500.0,0.00019453,2]
[392288304,1761311435008,-500.0,0.00019453,2]
[392288305,1761311435018,-1000.0,0.000195,2]
[392288306,1761311435027,-520.20064768,0.00019507,2]
[392288307,1761311435037,-482.0,0.00019507,2]
[392288308,1761311435048,-151.0,0.00019592,2]
[392288309,1761311435057,-238.60871557,0.00019592,2]
[392288310,1761311435066,-150.0,0.000196,2]
[392288311,1761311435075,-1000.0,0.000196,2]
[392288312,1761311435085,-263.5402989,0.00019641,2]
[392288313,1761311435094,-925.5,0.00019686,2]
[392288314,1761311435103,-3458.31925474,0.00019705,2]
[392288315,1761311435113,-1000.0,0.00019721,2]
[392288316,1761311435122,-500.0,0.00019773,2]
[392288317,1761311435132,-500.0,0.00019773,2]
[392288318,1761311435142,-501.46531349,0.00019773,2]
[392288319,1761311435151,-500.0,0.00019773,2]
[392288320,1761311435162,-500.0,0.00019773,2]
[392288321,1761311435171,-348.19929627,0.00019773,2]
[392288322,1761311435180,-500.0,0.00019773,2]
[392288323,1761311435190,-500.0,0.00019773,2]
[392288324,1761311435200,-500.0,0.00019773,2]
[392288325,1761311435210,-500.0,0.00019773,2]
[392288326,1761311435220,-500.0,0.00019773,2]
[392288327,1761311435230,-501.0500144,0.00019773,2]
[392288328,1761311435239,-505.18877245,0.00019773,2]
[392288329,1761311435249,-500.0,0.00019773,2]
[392288330,1761311435270,-300000.0,0.000198,2]
[392288331,1761311435284,-441.548319,0.000198,7]
[392288332,1761311435294,-441.548319,0.000198,7]
[392288333,1761311435304,-441.548319,0.000198,7]
[392288334,1761311435315,-441.548319,0.000198,7]
[392288335,1761311435325,-151.0,0.000198,7]
[392288336,1761311435336,-151.0,0.000198,7]
[392288337,1761311435347,-151.0,0.000198,7]
[392288338,1761311435360,-241.437225,0.000198,7]
[392288339,1761311435371,-731.126023,0.000198,7]
[392288340,1761311435381,-731.126023,0.000198,7]
[392288341,1761311435391,-731.126023,0.000198,7]
[392288342,1761311435401,-731.126023,0.000198,7]
[392288343,1761311435411,-165.210773,0.000198,7]
[392288344,1761311435420,-492.128239,0.000198,7]
[392288345,1761311435430,-492.128239,0.000198,7]
[392288346,1761311435440,-151.0,0.000198,7]
[392288347,1761311435450,-151.0,0.000198,7]
[392288348,1761311435460,-492.128239,0.000198,7]
[392288349,1761311435469,-170.086856,0.000198,7]
[392288350,1761311435479,-492.128239,0.000198,7]
[392288351,1761311435491,-821.103936,0.000198,7]
[392288352,1761311435501,-151.0,0.000198,7]
[392288353,1761311435511,-821.103936,0.000198,7]
[392288354,1761311435521,-821.103936,0.000198,7]
[392288355,1761311435530,-821.103936,0.000198,7]
[392288356,1761311435541,-1023.34667,0.000198,7]
[392288357,1761311435551,-1023.34667,0.000198,7]
[392288358,1761311435561,-1023.34667,0.000198,7]
[392288359,1761311435571,-1023.34667,0.000198,7]
[392288360,1761311435582,-151.0,0.000198,7]
[392288361,1761311435591,-151.0,0.000198,7]
[392288362,1761311435601,-160.0,0.000198,2]
[392288363,1761311435611,-161.0,0.000198,2]
[392288364,1761311435620,-452.44439264,0.00019821,2]
[392288365,1761311435630,-1000.0,0.00019821,2]
[392288366,1761311435640,-1000.0,0.00019821,2]
[392288367,1761311435650,-500.0,0.00019821,2]
[392288368,1761311435660,-762.51773703,0.00019821,2]
[392288369,1761311435669,-1000.0,0.00019821,2]
[392288370,1761311435679,-409.47898718,0.00019876,2]
[392288371,1761311435689,-1000.0,0.0001989,2]
[392288372,1761311435699,-4209.0,0.00019899,2]
[392288373,1761311435709,-634.522,0.00019899,2]
[392288374,1761311435719,-983.0,0.00019899,2]
[392288375,1761311435728,-2165.0,0.00019899,2]
[392288376,1761311435738,-422.93,0.00019899,2]
[392288377,1761311435748,-432.244,0.00019899,2]
[392288378,1761311435758,-160.0,0.00019912,2]
[392288379,1761311435767,-957.0,0.00019926,2]
[392288380,1761311435777,-366.4,0.00019955,3]
[392288381,1761311435787,-1096.32,0.00019955,3]
[392288382,1761311435797,-548.16,0.00019955,3]
[392288383,1761311435807,-500.0,0.00019973,2]
[392288384,1761311435818,-500.0,0.00019973,2]
[392288385,1761311435828,-213.33680434,0.00019973,2]
[392288386,1761311435839,-500.0,0.00019973,2]
[392288387,1761311435849,-3533.25444121,0.00019998,2]
[392288388,1761311435859,-175.075,0.0002,2]
[392288389,1761311435869,-775.0,0.0002,2]
[392288390,1761311435883,-300000.0,0.0002,2]
[392288391,1761311435893,-175.444,0.0002,2]
[392288392,1761311435903,-3593.68719219,0.0002,2]
[392288393,1761311435914,-441.548319,0.0002,7]
[392288394,1761311435924,-441.548319,0.0002,7]
[392288395,1761311435934,-441.548319,0.0002,7]
[392288396,1761311435943,-441.548319,0.0002,7]
[392288397,1761311435953,-151.0,0.0002,7]
[392288398,1761311435963,-162.579177,0.0002,7]
[392288399,1761311435973,-254.971483,0.0002,7]
[392288400,1761311435983,-731.126023,0.0002,7]
[392288401,1761311435993,-731.126023,0.0002,7]
[392288402,1761311436003,-731.126023,0.0002,7]
[392288403,1761311436215,-731.126023,0.0002,7]
[392288404,1761311436225,-492.128239,0.0002,7]
[392288405,1761311436234,-492.128239,0.0002,7]
[392288406,1761311436244,-166.5409,0.0002,7]
[392288407,1761311436257,-151.0,0.0002,7]
[392288408,1761311436268,-492.128239,0.0002,7]
[392288409,1761311436283,-492.128239,0.0002,7]
[392288410,1761311436292,-821.103936,0.0002,7]
[392288411,1761311436302,-151.0,0.0002,7]
[392288412,1761311436311,-821.103936,0.0002,7]
[392288413,1761311436321,-821.103936,0.0002,7]
[392288414,1761311436331,-821.103936,0.0002,7]
[392288415,1761311436340,-1023.34667,0.0002,7]
[392288416,1761311436350,-1023.34667,0.0002,7]
[392288417,1761311436360,-1023.34667,0.0002,7]
[392288418,1761311436370,-1023.34667,0.0002,7]
[392288419,1761311436380,-151.0,0.0002,7]
[392288420,1761311436389,-195.127346,0.0002,7]
[392288421,1761311436399,-2000.0,0.0002,7]
[392288422,1761311436408,-957.0,0.00020001,2]
[392288423,1761311436417,-600.0,0.00020008,2]
[392288424,1761311436427,-150.0,0.0002001,2]
[392288425,1761311436436,-257.596,0.0002001,2]
[392288426,1761311436445,-150.17,0.0002001,2]
[392288427,1761311436456,-150.23,0.0002001,2]
[392288428,1761311436465,-150.0,0.0002001,2]
[392288429,1761311436474,-264.346,0.0002001,2]
[392288430,1761311436484,-150.172,0.0002001,2]
[392288431,1761311436493,-957.0,0.00020033,2]
[392288432,1761311436503,-500.0,0.0002005,2]
[392288433,1761311436512,-420.0,0.00020063,2]
[392288434,1761311436521,-150.0,0.00020067,2]
[392288435,1761311436530,-247.43723805,0.0002014,2]
[392288436,1761311436540,-1051.0,0.00020161,2]
[392288437,1761311436549,-925.5,0.00020168,2]
[392288438,1761311436559,-1490.990344,0.00020187,2]
[392288439,1761311436569,-281.997179,0.000202,2]
[392288440,1761311436579,-177.228517,0.000202,2]
[392288441,1761311436588,-957.0,0.00020244,2]
[392288442,1761311436598,-1500.0,0.00020268,2]
[392288443,1761311436609,-168.62961235,0.00020297,2]
[392288444,1761311436618,-364.09455269,0.00020321,2]
[392288445,1761311436629,-1000.0,0.00020321,2]
[392288446,1761311436638,-1001.31018869,0.00020321,2]
[392288447,1761311436647,-500.0,0.00020321,2]
[392288448,1761311436656,-1000.0,0.00020321,2]
[392288449,1761311436666,-1000.0,0.00020321,2]
[392288450,1761311436675,-502.46996771,0.00020321,2]
[392288451,1761311436684,-503.36105109,0.00020321,2]
[392288452,1761311436694,-1000.0,0.00020321,2]
[392288453,1761311436704,-1500.0,0.00020368,2]
[392288454,1761311436713,-1500.0,0.00020368,2]
[392288455,1761311436723,-1500.0,0.00020368,2]
[392288456,1761311436732,-10141.11590472,0.000204,2]
[392288457,1761311436741,-5076.93166049,0.000204,2]
[392288458,1761311436751,-150.0,0.0002046,2]
[392288459,1761311436760,-260.0,0.0002046,2]
[392288460,1761311436769,-5000.0,0.0002047,2]
[392288461,1761311436778,-648.68964686,0.00020496,2]
[392288462,1761311436787,-957.0,0.00020498,2]
[392288463,1761311436796,-1521.49754752,0.00020498,2]
[392288464,1761311436806,-300000.0,0.000205,2]
[392288465,1761311436815,-849156.74258738,0.000205,2]
[392288466,1761311437155,-12397.57703858,0.000205,2]
[392288467,1761311437167,-901.22246736,0.000205,2]
[392288468,1761311437181,-5452.4826176,0.000205,2]
[392288469,1761311437197,-585.8500001,0.000205,2]
[392288470,1761311437209,-2034.89267852,0.000205,2]
[392288471,1761311437220,-2370.33736346,0.000205,2]
[392288475,1761311438260,-500.0,0.00019273,2]
[392288476,1761311438270,-500.25479542,0.00019773,2]
[392288478,1761311438283,-1153.06255648,0.000205,2]
[392288480,1761311439260,500.0,0.00018395,2]
[392288481,1761311439302,500.0,0.00018395,2]
[392288482,1761311439334,500.0,0.00018395,2]
[392288483,1761311439366,500.0,0.00018395,2]
[392288484,1761311439404,420.85099273,0.00018395,2]
[392288485,1761311439434,535.31126155,0.00018395,2]
[392288486,1761311439675,500.0,0.00018395,2]
[392288487,1761311439730,500.0,0.00018395,2]
[392288488,1761311439768,500.0,0.00018395,2]
[392288497,1761311440548,-583.4664375,0.000205,2]
[392288504,1761311440604,-278.425,0.000205,2]
[392288506,1761311440616,-3933.9377634,0.000205,2]
[392288508,1761311440628,-567.41619488,0.000205,2]
[392288511,1761311440639,-413.3483757,0.000205,2]
[392288698,1761311447653,-22975.57287205,0.000205,2]
[392288699,1761311447664,-2430.96192476,0.000205,2]
[392288700,1761311487757,500.0,0.00018395,2]
[392288701,1761311487785,500.0,0.00018395,2]
[392288702,1761311487834,500.0,0.00018395,2]
[392288703,1761311487870,500.0,0.00018395,2]
[392288704,1761311487898,500.0,0.00018395,2]
[392288705,1761311487927,500.0,0.00018395,2]
[392288706,1761311487954,500.0,0.00018395,2]
[392288707,1761311487984,500.0,0.00018395,2]
[392288708,1761311488033,500.0,0.00018395,2]